bitfinex/quotes_ETHUSD_20250426
["timestamp","ask_amount","ask_price","bid_price","bid_amount"]
[1745676124618,0.7638,1791.9,1791.5,7.31127625]
[1745676124619,0.7638,1791.9,1791.5,1.72938948]
[1745676124918,3.7638,1791.9,1791.4,11.7121973]
[1745676125821,0.7638,1791.9,1791.4,6.12999998]
[1745676126032,4.796,1791.9,1791.8,5.58098002]
[1745676126439,4.796,1791.9,1791.5,6.27102089]
[1745676126591,4.796,1791.9,1791.5,1.24010209]
[1745676126787,4.796,1791.9,1791.6,5.5816014]
[1745676127023,4.796,1791.9,1791.5,5.58182867]
[1745676127346,0.7638,1791.8,1791.5,5.58177421]
[1745676128289,0.7638,1791.8,1791.5,5.58172962]
[1745676128519,0.7638,1791.8,1791.6,5.58132788]
[1745676128724,0.7638,1791.8,1791.7,5.58129151]
[1745676129289,4.796,1791.9,1791.7,5.58105472]
[1745676129718,4.796,1791.9,1791.8,5.58098002]
[1745676130793,4.796,1791.9,1791.6,5.58150251]
[1745676130999,4.796,1791.9,1791.7,5.58112076]
[1745676131440,4.796,1791.9,1791.8,5.58098002]
[1745676132092,4.796,1791.9,1791.7,5.58117871]
[1745676132297,4.796,1791.9,1791.7,5.58103557]
[1745676132633,4.796,1791.9,1791.8,5.58098002]
[1745676133301,4.796,1791.9,1791.8,6.69718158]
[1745676134308,4.797,1792.4,1792.2,5.5794975]
[1745676134509,16.748,1792.6,1792.4,5.5791118]
[1745676134731,16.748,1792.6,1792.5,5.57880055]
[1745676135036,21.545,1792.6,1792.4,5.57900542]
[1745676135222,21.545,1792.6,1792.2,5.57949449]
[1745676135408,21.545,1792.6,1792.1,5.57977986]
[1745676135730,0.7832,1792.4,1791.9,5.58062081]
[1745676136641,0.7832,1792.4,1791.9,11.16105384]
[1745676136825,0.7832,1792.4,1791.9,5.58043303]
[1745676137833,0.7832,1792.4,1791.9,11.16088174]
[1745676138138,0.7832,1792.4,1791.6,1.70841977]
[1745676138344,0.7832,1792.2,1791.4,6.95949998]
[1745676138547,5.5802,1792.1,1791.5,0.69595]
[1745676138859,5.5802,1792.1,1791.7,5.5810346]
[1745676139016,3.0,1792.0,1791.6,5.58134653]
[1745676139401,3.0,1792.0,1791.6,11.16276047]
[1745676139633,3.0,1792.0,1791.5,5.58180523]
[1745676139823,3.0,1792.0,1791.6,5.58143073]
[1745676140417,3.0,1792.0,1791.6,5.58139052]
[1745676140617,3.0,1792.0,1791.6,5.58138605]
[1745676140840,0.7832,1791.9,1791.5,5.58176652]
[1745676141152,0.7832,1791.9,1791.5,5.58172683]
[1745676141348,0.7832,1791.9,1791.6,5.58140302]
[1745676141558,0.7832,1791.9,1791.7,5.58119868]
[1745676142143,0.7832,1791.9,1791.7,5.58108362]
[1745676145440,0.7832,1791.9,1791.7,5.58106649]
[1745676145643,0.7832,1791.9,1791.7,5.58108966]
[1745676147219,0.7832,1791.9,1791.7,5.58107287]
[1745676148115,0.7832,1791.9,1791.7,5.58106691]
[1745676148657,4.798,1792.1,1791.9,5.58054277]
[1745676148949,5.5938,1792.1,1791.7,5.58107353]
[1745676149119,5.5938,1792.1,1791.5,0.7613]
[1745676149320,5.5938,1792.1,1791.6,5.58139965]
[1745676149522,0.31184424,1792.0,1791.6,5.58139965]
[1745676149721,0.31184424,1792.0,1791.7,5.58117769]
[1745676149952,0.31184424,1792.0,1791.6,5.58139965]
[1745676150253,3.31184424,1792.0,1791.5,5.58178758]
[1745676150440,3.31184424,1792.0,1791.5,11.16347226]
[1745676150441,0.31184424,1791.9,1791.5,11.16347226]
[1745676150646,0.31184424,1791.9,1791.5,5.58168468]
[1745676150815,0.31184424,1791.9,1791.5,5.58167396]
[1745676151019,0.31184424,1791.9,1791.6,5.58158504]
[1745676151221,0.31184424,1791.9,1791.5,5.58167396]
[1745676151441,5.6638,1791.8,1791.4,5.58206739]
[1745676151667,5.6638,1791.8,1791.5,5.58188458]
[1745676152354,0.31184424,1791.7,1791.5,5.58188458]
[1745676152557,0.31184424,1791.7,1791.5,5.58174943]
[1745676152737,0.31184424,1791.7,1791.6,5.58160303]
[1745676153236,5.6638,1791.8,1791.6,5.58160303]
[1745676153632,8.6638,1791.8,1791.7,5.58129151]
[1745676153837,5.6638,1791.8,1791.7,5.58129151]
[1745676154032,5.97592588,1791.8,1791.7,5.58129151]
[1745676154233,5.18012588,1791.8,1791.7,5.58129151]
[1745676154451,5.18012588,1791.8,1791.7,6.69757756]
[1745676154655,0.31212588,1791.8,1791.7,6.69757756]
[1745676155129,4.868,1791.9,1791.8,5.58098002]
[1745676155934,5.18012588,1791.9,1791.8,5.58098002]
[1745676156135,5.18012588,1791.9,1791.7,5.58115013]
[1745676156336,5.18012588,1791.9,1791.8,5.58098002]
[1745676156782,4.868,1791.9,1791.8,5.58098002]
[1745676168758,4.42153406,1791.9,1791.8,6.73917041]
[1745676168963,0.31238109,1792.1,1792.0,5.58035714]
[1745676169183,4.868,1792.3,1792.2,5.5797344]
[1745676169877,5.18038109,1792.3,1792.2,5.5797344]
[1745676170883,4.868,1792.3,1792.2,5.5797344]
[1745676171389,0.31238109,1792.3,1792.2,7.45890087]
[1745676171688,0.31238109,1792.3,1792.2,8.14811567]
[1745676171995,21.616,1792.6,1792.5,5.57880055]
[1745676172446,21.92812727,1792.6,1792.5,5.57880055]
[1745676174852,21.92812727,1792.6,1792.3,5.57927773]
[1745676175055,0.8277,1792.5,1792.1,6.89319998]
[1745676175259,0.8277,1792.5,1792.4,5.57909331]
[1745676177195,21.616,1792.6,1792.5,5.57880055]
[1745676178100,21.92776387,1792.6,1792.5,5.57880055]
[1745676178767,21.92776387,1792.6,1792.4,5.57891959]
[1745676179098,21.616,1792.6,1792.5,5.57880055]
[1745676181767,3.8277,1792.9,1792.5,6.77089256]
[1745676181970,4.809,1792.9,1792.8,5.57786702]
[1745676182700,0.8277,1793.3,1793.2,5.57662279]
[1745676182905,4.809,1793.3,1793.2,5.57662279]
[1745676184700,4.809,1793.3,1793.0,5.57712346]
[1745676184878,0.8299,1793.2,1793.1,5.5769338]
[1745676185084,4.809,1793.3,1793.2,5.57662279]
[1745676187113,16.755,1793.5,1793.3,5.57623772]
[1745676187485,21.562,1793.5,1793.3,5.57623772]
[1745676189266,21.562,1793.5,1793.4,5.57600089]
[1745676189885,0.4079625,1793.8,1793.7,5.57506829]
[1745676194512,0.4079625,1793.8,1793.7,6.39456829]
[1745676196291,0.4079625,1793.8,1793.7,5.57506829]
[1745676196491,0.4079625,1793.8,1793.7,6.69010182]
[1745676198180,4.9095773,1793.8,1793.1,6.39621197]
[1745676198377,0.8124,1793.5,1792.9,0.8195]
[1745676198602,3.0,1793.3,1793.0,5.57707833]
[1745676199586,3.0,1793.3,1793.0,5.57709326]
[1745676199913,3.0,1793.3,1793.1,6.13460623]
[1745676202018,3.0,1793.3,1793.1,6.13442186]
[1745676202228,3.0,1793.3,1793.1,0.55770933]
[1745676202398,3.0,1793.3,1793.1,5.5767663]
[1745676202894,3.0,1793.3,1793.0,5.57708125]
[1745676203098,3.0,1793.3,1793.0,11.15407577]
[1745676203297,3.0,1793.3,1793.1,5.57688204]
[1745676204095,4.806,1793.4,1793.3,5.57618904]
[1745676205130,4.806,1793.4,1793.2,5.57644388]
[1745676205310,4.806,1793.4,1793.2,6.13406966]
[1745676206039,4.806,1793.4,1793.1,5.57681531]
[1745676206403,4.806,1793.4,1793.2,5.57651036]
[1745676206631,4.806,1793.4,1793.1,5.57681531]
[1745676206940,4.806,1793.4,1793.1,5.57669151]
[1745676207746,3.0,1793.3,1792.9,0.8195]
[1745676208063,0.6892148,1793.0,1792.5,8.07819199]
[1745676208203,5.5786,1792.9,1792.5,1.36571604]
[1745676208407,5.5786,1792.9,1792.3,5.5792522]
[1745676208701,3.7726,1792.8,1792.2,12.47071343]
[1745676208937,3.7726,1792.8,1792.2,12.47068694]
[1745676209236,3.7726,1792.8,1792.4,5.57910816]
[1745676209443,3.7726,1792.8,1792.5,6.13659244]
[1745676209938,4.08454568,1792.8,1792.5,6.13659244]
[1745676210302,3.7726,1792.8,1792.5,6.13659244]
[1745676210808,3.7726,1792.8,1792.5,6.13648705]
[1745676211023,3.7726,1792.8,1792.6,5.5782638]
[1745676211246,3.7726,1792.8,1792.5,6.13653074]
[1745676211536,3.7726,1792.8,1792.5,0.55791082]
[1745676211706,4.08449869,1792.8,1792.5,6.13670029]
[1745676212937,0.7726,1792.8,1792.5,6.13670029]
[1745676213239,4.797,1792.7,1792.5,6.13670029]
[1745676213408,4.797,1792.6,1792.5,6.13670029]
[1745676213802,4.797,1792.6,1792.5,0.55791082]
[1745676214543,4.797,1792.6,1792.5,6.13671137]
[1745676216648,0.7665,1793.0,1792.5,1.32511082]
[1745676216948,17.5125,1793.2,1793.0,5.57721448]
[1745676217124,4.797,1793.1,1793.0,5.57721448]
[1745676217447,4.797,1793.1,1792.9,5.57738518]
[1745676219646,4.797,1793.1,1792.9,5.57731844]
[1745676220058,4.797,1793.1,1793.0,5.57724484]
[1745676220821,4.797,1793.1,1792.9,5.57739061]
[1745676221357,4.797,1793.1,1792.7,5.57817183]
[1745676221558,3.7665,1793.0,1792.6,5.57829621]
[1745676221762,3.7665,1793.0,1792.6,6.69399045]
[1745676222253,4.07804235,1793.0,1792.6,6.69399045]
[1745676222832,3.7665,1793.0,1792.6,6.69399045]
[1745676223244,3.7665,1793.0,1792.7,5.57814706]
[1745676223646,3.7665,1793.0,1792.6,1.11569424]
[1745676223850,4.4557148,1793.0,1792.5,5.57879317]
[1745676224559,4.7674805,1793.0,1792.5,5.57879317]
[1745676224761,4.7674805,1793.0,1792.4,5.57895283]
[1745676224960,0.8202,1792.9,1792.5,5.57877193]
[1745676225172,0.8202,1792.9,1792.1,6.68791372]
[1745676225173,0.8202,1792.5,1791.9,0.7555]
[1745676225367,0.8202,1792.2,1791.9,0.68855]
[1745676225572,4.797,1792.1,1791.7,5.58104426]
[1745676225722,4.797,1792.1,1791.6,5.58137058]
[1745676225928,0.8202,1792.0,1791.5,6.33723721]
[1745676226160,0.8202,1792.0,1791.5,5.58170007]
[1745676226161,3.8202,1792.0,1791.5,5.58170007]
[1745676226372,4.8211805,1792.0,1791.4,5.582059]
[1745676226552,4.8211805,1792.0,1791.3,6.88549998]
[1745676226730,4.8211805,1792.0,1791.4,5.58199406]
[1745676226927,4.0009805,1792.0,1791.4,5.58199406]
[1745676227124,0.8202,1791.9,1791.3,6.82919735]
[1745676227429,0.8202,1791.9,1791.3,5.58236797]
[1745676227628,0.8202,1791.9,1791.4,5.58208592]
[1745676227957,0.8202,1791.9,1791.4,11.16390612]
[1745676228124,0.7728,1791.7,1791.2,5.58282431]
[1745676228329,4.798,1791.6,1791.2,6.70418757]
[1745676228570,4.798,1791.6,1791.3,5.58253487]
[1745676228867,4.798,1791.6,1791.2,6.70427234]
[1745676229228,4.798,1791.6,1791.3,5.58252842]
[1745676229565,4.798,1791.6,1791.2,6.70433846]
[1745676229742,4.798,1791.6,1791.2,5.58274689]
[1745676230073,4.798,1791.6,1791.2,11.16534857]
[1745676230273,4.798,1791.6,1791.2,5.58259136]
[1745676230446,4.798,1791.6,1791.3,5.58253099]
[1745676230870,4.798,1791.6,1791.2,5.58270586]
[1745676231061,4.798,1791.6,1791.2,5.58261605]
[1745676231262,4.798,1791.6,1791.3,5.58238358]
[1745676232298,4.798,1791.6,1791.2,5.58261605]
[1745676232501,4.798,1791.6,1791.3,5.582533]
[1745676233303,4.798,1791.6,1791.4,5.5819905]
[1745676233484,7.798,1791.6,1791.5,5.58191459]
[1745676233799,7.798,1791.6,1791.3,5.58249534]
[1745676234353,7.798,1791.6,1791.4,5.58218032]
[1745676234553,7.798,1791.6,1791.4,5.58198104]
[1745676236391,7.798,1791.6,1791.4,11.16402654]
[1745676236561,7.798,1791.6,1791.4,5.58198104]
[1745676237097,7.798,1791.6,1791.3,5.58241413]
[1745676237687,7.798,1791.6,1791.3,5.58231616]
[1745676237888,7.798,1791.6,1791.4,5.58221992]
[1745676238495,0.7545,1791.5,1791.3,5.58227728]
[1745676238795,0.7545,1791.5,1791.4,5.58222619]
[1745676240686,4.798,1791.6,1791.5,5.58191459]
[1745676241186,4.798,1791.6,1791.4,5.58208234]
[1745676241817,4.798,1791.6,1791.3,5.58237606]
[1745676242110,4.798,1791.6,1791.1,0.8148]
[1745676242111,0.6892148,1791.4,1791.1,0.05]
[1745676242312,0.6892148,1791.2,1791.1,0.05]
[1745676242495,9.2447148,1791.2,1791.1,0.05]
[1745676243106,8.5555,1791.2,1791.1,0.05]
[1745676243504,3.7545,1791.2,1791.1,0.05]
[1745676243691,4.801,1791.2,1791.1,5.63316118]
[1745676244016,4.801,1791.3,1791.1,6.75477965]
[1745676244190,0.7745,1791.6,1791.4,5.58205588]
[1745676244385,7.801,1791.5,1791.3,5.58240622]
[1745676245118,7.801,1791.5,1791.3,11.16475042]
[1745676245320,7.801,1791.5,1791.3,5.5823442]
[1745676245615,3.7745,1791.4,1791.1,0.05]
[1745676245818,0.7745,1791.3,1791.1,0.05]
[1745676246623,0.7745,1791.3,1791.2,5.58284948]
[1745676247090,0.7745,1791.3,1791.1,5.63297797]
[1745676248300,4.801,1791.2,1791.1,5.63297797]
[1745676249286,4.801,1791.2,1791.1,0.05]
[1745676249488,9.8147148,1791.2,1791.1,0.05]
[1745676249828,9.1255,1791.2,1791.1,0.05]
[1745676250180,3.55,1791.1,1790.1,5.63614848]
[1745676250408,0.7745,1790.4,1790.1,5.63626946]
[1745676250594,4.801,1790.3,1790.1,0.05]
[1745676251289,3.0,1790.2,1790.1,0.05]
[1745676252192,3.0,1790.2,1790.1,5.63628009]
[1745676252509,3.0,1790.2,1790.1,0.05]
[1745676253533,4.3245,1790.2,1790.1,0.05]
[1745676253714,7.72575649,1790.2,1790.1,0.05]
[1745676254313,0.7745,1790.0,1789.2,5.58891378]
[1745676254511,0.7745,1789.7,1789.1,0.05]
[1745676255047,0.7745,1789.7,1789.3,5.58855405]
[1745676256202,0.7745,1789.7,1789.1,0.05]
[1745676256203,4.803,1789.6,1789.4,5.58817588]
[1745676257699,4.804,1789.5,1789.4,5.5884654]
[1745676257899,4.804,1789.5,1789.4,7.46556015]
[1745676259200,4.804,1789.5,1789.4,5.5884654]
[1745676259431,4.804,1789.5,1789.3,5.58863443]
[1745676259842,5.621,1789.5,1789.1,0.05]
[1745676260055,3.0,1789.4,1789.1,0.05]
[1745676260433,0.55,1789.3,1789.1,0.05]
[1745676260602,4.367,1789.2,1789.1,0.05]
[1745676260814,3.817,1789.2,1789.1,0.05]
[1745676261253,3.817,1789.2,1789.1,5.63940249]
[1745676261455,3.817,1789.2,1789.1,0.05]
[1745676261656,3.817,1789.2,1789.1,5.63940249]
[1745676261848,3.817,1789.4,1789.1,5.63940249]
[1745676262046,3.817,1789.4,1789.1,0.05]
[1745676262359,0.817,1789.7,1789.2,0.8012]
[1745676262559,17.587,1789.9,1789.6,5.58784085]
[1745676262765,4.804,1789.8,1789.6,5.58757375]
[1745676263064,7.804,1789.8,1789.2,0.8012]
[1745676263220,7.804,1789.8,1789.4,5.5883198]
[1745676263623,3.0,1789.7,1789.3,5.58860427]
[1745676263815,3.0,1789.7,1789.2,0.8012]
[1745676264020,3.0,1789.7,1789.4,5.58818497]
[1745676265065,17.587,1789.9,1789.8,5.58721644]
[1745676265245,3.0,1789.8,1789.3,5.58874684]
[1745676265630,3.0,1789.8,1789.2,5.58883598]
[1745676265831,0.7746,1789.7,1789.2,5.58883598]
[1745676266321,0.7746,1789.7,1789.4,5.58828289]
[1745676267119,0.7746,1789.7,1789.3,5.5886187]
[1745676267315,0.7746,1789.7,1789.4,5.58837038]
[1745676267556,0.7746,1789.7,1789.3,5.58858568]
[1745676267760,0.7746,1789.7,1789.3,5.58858941]
[1745676268121,0.7746,1789.7,1789.4,5.58845538]
[1745676268957,0.7746,1789.7,1789.4,5.58822822]
[1745676269466,0.7746,1789.7,1789.2,5.58887832]
[1745676269662,0.7746,1789.7,1789.5,5.58802241]
[1745676269970,0.7746,1789.7,1789.5,5.5879053]
[1745676270174,0.7746,1789.7,1789.5,5.58789905]
[1745676270359,0.7746,1789.7,1789.4,5.58827397]
[1745676270559,0.7746,1789.7,1789.5,5.58813862]
[1745676271257,16.77,1789.9,1789.8,5.58721644]
[1745676271477,21.576,1789.9,1789.8,5.58721644]
[1745676271659,24.576,1789.9,1789.8,5.58721644]
[1745676272284,24.576,1789.9,1789.7,11.174646]
[1745676272447,24.576,1789.9,1789.7,5.58731208]
[1745676273192,21.576,1789.9,1789.8,5.58721644]
[1745676274563,21.576,1789.9,1789.5,0.7516]
[1745676274767,21.576,1789.9,1789.7,5.58748575]
[1745676275873,22.3434,1789.9,1789.6,5.58770932]
[1745676276301,3.0,1789.8,1789.3,5.58854819]
[1745676276592,0.7674,1789.7,1789.3,5.58854819]
[1745676277757,0.7674,1789.7,1789.5,5.58809409]
[1745676278091,3.30958606,1789.8,1789.6,5.58754378]
[1745676278379,3.30958606,1789.8,1789.6,11.17517418]
[1745676278584,3.30958606,1789.8,1789.6,5.58760579]
[1745676278789,3.0,1789.8,1789.6,5.58760579]
[1745676278985,3.0,1789.8,1789.7,5.58752863]
[1745676279153,3.0,1789.8,1789.6,5.58764399]
[1745676279352,3.0,1789.8,1789.6,6.14640231]
[1745676279556,4.854,1790.1,1790.0,5.58659217]
[1745676280591,0.31089897,1790.5,1790.4,5.58534405]
[1745676281163,4.854,1790.7,1790.2,0.7635]
[1745676281365,0.7669,1790.5,1790.1,5.58623306]
[1745676281587,0.7669,1790.5,1789.9,5.58672861]
[1745676281791,0.7669,1790.3,1789.7,5.58733528]
[1745676282005,7.854,1790.2,1789.5,6.35165057]
[1745676282173,3.0,1790.1,1789.8,5.58707466]
[1745676282579,3.31089897,1790.1,1789.7,5.58737808]
[1745676283118,3.31089897,1790.1,1789.6,0.63516506]
[1745676283322,3.31089897,1790.1,1789.9,5.58683088]
[1745676283794,3.31089897,1790.1,1789.8,5.5870298]
[1745676284193,3.31089897,1790.1,1789.9,5.58683685]
[1745676284385,3.31089897,1790.1,1789.8,5.58702924]
[1745676286016,3.31089897,1790.1,1789.8,5.58696739]
[1745676286222,3.31089897,1790.1,1789.9,5.58687802]
[1745676287131,0.7526,1790.0,1789.2,10.35295647]
[1745676287280,0.7526,1790.0,1789.4,5.58825864]
[1745676287480,0.55,1789.9,1789.4,5.58825864]
[1745676287712,3.0,1789.7,1789.4,5.58825864]
[1745676287918,3.0,1789.7,1789.3,6.62385343]
[1745676288087,0.7526,1789.6,1789.1,0.05]
[1745676288295,0.55,1789.5,1789.1,0.05]
[1745676288510,0.8026,1789.2,1789.1,0.05]
[1745676289597,1.3526,1789.2,1789.1,0.05]
[1745676291732,10.4426,1789.2,1789.1,0.05]
[1745676291890,10.75349897,1789.2,1789.1,0.05]
[1745676292524,14.15475546,1789.2,1789.1,0.05]
[1745676292725,14.57311023,1789.2,1789.1,0.05]
[1745676293133,18.57311023,1789.2,1789.1,0.05]
[1745676294919,53.31853332,1789.2,1789.1,0.05]
[1745676295093,0.55,1788.6,1788.1,5.64231775]
[1745676295299,3.0,1788.4,1788.1,6.20654237]
[1745676295510,3.0,1788.4,1788.1,0.05]
[1745676295714,0.8237,1788.3,1788.1,0.05]
[1745676296029,0.8237,1788.3,1788.1,5.64239975]
[1745676296716,0.8237,1788.3,1788.2,5.59221563]
[1745676296895,3.0,1788.4,1788.2,5.59221563]
[1745676297325,3.0,1788.4,1788.1,5.64241952]
[1745676297521,3.0,1788.4,1788.1,0.05]
[1745676298845,0.791,1788.3,1788.1,0.05]
[1745676300548,0.791,1788.3,1788.1,5.64234774]
[1745676300751,3.0,1788.4,1788.1,5.64234774]
[1745676301274,3.0,1788.4,1788.1,0.05]
[1745676301842,0.791,1788.5,1788.1,0.05]
[1745676302083,17.335,1788.6,1788.1,0.05]
[1745676302084,4.857,1788.4,1788.2,5.59191125]
[1745676302758,4.857,1788.4,1788.1,6.43621207]
[1745676303473,3.791,1788.3,1788.1,0.05]
[1745676303928,0.55,1788.2,1788.1,0.05]
[1745676304252,1.341,1788.2,1788.1,0.05]
[1745676305864,5.68,1788.2,1788.1,0.05]
[1745676306173,4.889,1788.2,1788.1,5.64252838]
[1745676306686,4.889,1788.2,1788.1,0.05]
[1745676307047,4.889,1788.2,1788.1,5.64252838]
[1745676307246,4.889,1788.2,1788.1,0.05]
[1745676307667,4.889,1788.2,1788.1,5.64252838]
[1745676308244,4.889,1788.2,1788.1,6.76606514]
[1745676308642,4.89,1788.4,1788.2,0.7836]
[1745676308889,4.89,1788.4,1788.3,5.59190292]
[1745676309391,16.785,1788.6,1788.5,5.5912776]
[1745676309692,16.785,1788.6,1788.5,6.3748776]
[1745676309987,16.785,1788.6,1788.5,7.57151395]
[1745676310579,16.785,1788.6,1788.2,3.40125649]
[1745676310580,19.785,1788.6,1788.1,0.8336]
[1745676310781,19.785,1788.6,1788.2,5.59197573]
[1745676310782,3.0,1788.5,1788.2,5.59197573]
[1745676311284,3.0,1788.5,1788.3,5.59190027]
[1745676311847,3.0,1788.5,1788.4,5.59159024]
[1745676312749,16.785,1788.6,1788.5,5.5912776]
[1745676312948,21.674,1788.6,1788.5,5.5912776]
[1745676313887,4.889,1788.6,1788.5,5.5912776]
[1745676314262,4.889,1788.6,1788.5,6.3841776]
[1745676314455,22.883,1789.3,1788.9,6.38268678]
[1745676314456,4.889,1789.0,1788.9,6.38268678]
[1745676316360,4.889,1789.0,1788.9,7.57997528]
[1745676317289,4.889,1789.0,1788.9,6.38268678]
[1745676317794,4.889,1789.0,1788.4,10.11108364]
[1745676317964,4.889,1789.0,1788.4,1.91124229]
[1745676318160,3.0,1788.9,1788.5,5.59102579]
[1745676318382,3.0,1788.9,1788.6,5.59078549]
[1745676318587,3.0,1788.9,1788.5,5.59108961]
[1745676318898,3.0,1788.9,1788.4,0.7929]
[1745676319051,3.0,1789.0,1788.9,5.59002739]
[1745676319252,4.889,1789.0,1788.9,5.59002739]
[1745676321262,4.889,1789.0,1788.9,6.78414412]
[1745676322806,21.681,1789.3,1789.2,5.58909009]
[1745676323880,4.888,1789.6,1789.3,5.58853366]
[1745676324084,4.888,1789.6,1789.4,5.58826161]
[1745676324766,4.888,1789.6,1789.2,6.36030309]
[1745676324982,5.6665,1789.6,1789.3,5.58876232]
[1745676325594,5.6665,1789.6,1789.2,5.58885078]
[1745676325799,5.6665,1789.6,1789.3,5.58875357]
[1745676326689,5.6665,1789.6,1789.3,11.17730195]
[1745676326896,5.6665,1789.6,1789.3,5.58853089]
[1745676327264,5.6665,1789.6,1789.4,5.58837048]
[1745676327596,5.6665,1789.6,1789.3,5.58860279]
[1745676328010,5.6665,1789.6,1789.0,5.58971492]
[1745676328323,4.888,1789.6,1789.4,5.58824679]
[1745676328528,4.888,1789.6,1789.5,5.58815311]
[1745676329023,4.888,1789.6,1789.5,6.35955311]
[1745676329333,19.79,1790.0,1789.9,5.58690429]
[1745676329525,24.677,1790.0,1789.9,5.58690429]
[1745676329992,21.677,1790.0,1789.9,5.58690429]
[1745676330194,0.7785,1790.5,1789.9,1.88880963]
[1745676330419,4.887,1790.4,1790.3,5.58565603]
[1745676332155,4.887,1790.4,1790.2,5.58578787]
[1745676332326,4.887,1790.4,1789.9,7.47564925]
[1745676332485,4.887,1790.4,1790.3,5.58565603]
[1745676333082,4.887,1790.4,1789.9,1.88880963]
[1745676333437,4.887,1790.4,1790.1,5.58625511]
[1745676333784,3.0,1790.3,1789.9,0.7714]
[1745676333990,3.821,1790.3,1789.8,5.58704785]
[1745676335100,3.821,1790.3,1789.7,0.8192]
[1745676335428,0.821,1790.1,1789.3,5.58862778]
[1745676335632,0.55,1789.8,1789.2,6.40820774]
[1745676335834,0.55,1789.8,1789.2,6.84466212]
[1745676336062,0.55,1789.8,1789.3,5.58864943]
[1745676336403,0.55,1789.8,1789.3,5.58854356]
[1745676336634,0.55,1789.8,1789.4,5.58845938]
[1745676337449,4.13022049,1789.9,1789.5,5.58789309]
[1745676337599,4.13022049,1789.9,1789.5,5.58796036]
[1745676337803,4.13022049,1789.9,1789.6,5.58759902]
[1745676338006,4.991,1789.8,1789.7,5.58737307]
[1745676339446,4.991,1789.8,1789.5,6.4071974]
[1745676339618,4.991,1789.8,1789.6,5.58783633]
[1745676340410,4.991,1789.8,1789.5,5.58804902]
[1745676340607,3.0,1789.7,1789.4,5.58834839]
[1745676341427,3.0,1789.7,1789.5,11.176108]
[1745676341627,4.991,1789.8,1789.7,5.58752863]
[1745676342350,4.991,1789.8,1789.6,5.58766938]
[1745676342515,4.991,1789.8,1789.6,11.17528987]
[1745676342721,4.991,1789.8,1789.6,11.17522986]
[1745676343047,4.991,1789.8,1789.6,5.58760937]
[1745676343457,4.991,1789.8,1789.6,11.17522117]
[1745676343671,4.991,1789.8,1789.6,5.58760937]
[1745676345069,4.991,1789.8,1789.7,5.58752863]
[1745676345830,4.991,1789.8,1789.7,6.34002863]
[1745676349572,4.99,1790.1,1790.0,5.58659217]
[1745676350367,4.99,1790.1,1790.0,6.37229217]
[1745676350539,0.7818,1790.7,1790.3,5.58539414]
[1745676350739,3.0,1790.5,1790.4,5.58514023]
[1745676351179,4.99,1790.6,1790.5,5.58503211]
[1745676351357,4.99,1790.6,1790.4,6.70217259]
[1745676351556,4.99,1790.6,1790.4,5.58510084]
[1745676352081,4.99,1790.6,1790.0,0.7857]
[1745676352388,5.30067613,1790.6,1790.5,5.58503211]
[1745676352849,4.99,1790.6,1790.5,5.58503211]
[1745676354981,4.99,1790.6,1790.4,6.3517049]
[1745676355278,4.99,1790.6,1790.5,5.58503211]
[1745676356346,4.99,1790.6,1790.4,5.5852603]
[1745676356559,4.99,1790.6,1790.4,5.58520316]
[1745676357040,4.99,1790.6,1790.5,5.58503211]
[1745676357245,4.99,1790.6,1790.3,5.58550948]
[1745676357445,4.99,1790.6,1790.3,1.19378815]
[1745676357679,5.8024,1790.6,1790.3,5.58548813]
[1745676357878,5.8024,1790.6,1790.4,5.58532918]
[1745676358080,5.8024,1790.6,1790.5,5.58503211]
[1745676358380,4.99,1790.6,1790.5,5.58503211]
[1745676360585,4.99,1790.6,1790.2,0.7665]
[1745676360782,3.0,1790.5,1790.0,5.58642491]
[1745676360960,0.8124,1790.4,1789.7,0.7665]
[1745676361352,0.8124,1790.4,1789.8,5.5872124]
[1745676361553,1.12261742,1790.4,1789.8,5.5872124]
[1745676362223,0.8124,1790.3,1789.6,5.58771212]
[1745676362361,0.8124,1790.1,1789.6,11.17536432]
[1745676362548,3.8124,1790.1,1789.5,5.58800482]
[1745676362753,0.8124,1790.0,1789.6,5.58783609]
[1745676363549,0.55,1789.9,1789.2,1.25565438]
[1745676363750,5.8014,1789.8,1789.2,6.84457094]
[1745676363956,3.0,1789.7,1789.2,6.84457094]
[1745676364162,3.0,1789.7,1789.3,5.58873821]
[1745676364362,3.31021742,1789.7,1789.2,5.58893388]
[1745676364783,3.31021742,1789.7,1789.3,5.58860368]
[1745676364963,3.31021742,1789.7,1789.5,5.58810783]
[1745676365384,3.31021742,1789.7,1789.4,5.58830259]
[1745676365681,3.31021742,1789.7,1789.0,3.39881131]
[1745676365850,3.0,1789.7,1789.3,11.17728524]
[1745676366053,3.0,1789.7,1789.3,5.58853106]
[1745676366260,3.0,1789.7,1789.4,5.58821985]
[1745676366456,3.0,1789.7,1789.4,5.58821765]
[1745676366902,3.0,1789.7,1789.5,5.58813069]
[1745676367204,5.8014,1789.8,1789.5,5.58813069]
[1745676367205,0.8124,1789.8,1789.6,5.58784085]
[1745676367403,4.961,1789.7,1789.6,5.58764068]
[1745676367777,16.776,1789.9,1789.6,5.58764068]
[1745676367778,16.776,1789.9,1789.8,5.58721644]
[1745676368019,4.961,1790.0,1789.9,5.58690429]
[1745676368903,4.961,1790.4,1790.3,5.58565603]
[1745676370582,4.961,1790.4,1790.2,5.58586205]
[1745676370983,4.961,1790.4,1790.2,5.58572328]
[1745676371224,4.961,1790.4,1790.3,5.58565603]
[1745676372182,4.961,1790.4,1790.2,11.17140159]
[1745676372385,4.961,1790.4,1790.3,5.58565603]
[1745676373122,4.961,1790.4,1790.2,5.58583208]